bitfinex-derivatives/quotes_ETHF0:USTF0_20210402
["timestamp","ask_amount","ask_price","bid_price","bid_amount"]
[1617382403603,76.89065,2056.7,2056.6,2.90695]
[1617382404404,75.92075,2056.7,2056.6,2.90695]
[1617382406805,32.90695,2056.7,2056.6,2.90695]
[1617382407205,56.8266,2056.6,2055.5,2.571]
[1617382407405,30.0,2056.5,2055.5,2.571]
[1617382408308,29.0301,2056.5,2055.5,2.571]
[1617382408507,29.0301,2056.5,2054.8,16.1552]
[1617382408908,29.0301,2056.5,2055.5,2.90695]
[1617382409908,31.0301,2056.5,2055.5,2.90695]
[1617382410109,61.4475,2055.5,2055.1,0.02]
[1617382410309,29.0301,2055.4,2055.1,0.02]
[1617382411009,2.90695,2055.2,2055.1,2.90695]
[1617382411412,1.93705,2055.2,2055.1,2.90695]
[1617382413415,29.0301,2055.4,2055.1,2.90695]
[1617382415015,31.93705,2055.4,2055.1,2.90695]
[1617382415415,30.96715,2055.4,2055.1,2.90695]
[1617382415815,2.90695,2055.4,2055.1,2.90695]
[1617382416215,61.4475,2055.5,2055.1,2.90695]
[1617382417117,61.4475,2055.5,2054.0,1.3714]
[1617382417118,61.4475,2055.5,2055.4,2.90695]
[1617382418322,60.7248,2055.5,2055.4,2.90695]
[1617382419125,90.7248,2055.5,2055.4,2.90695]
[1617382419426,90.7248,2055.5,2053.8,13.0707]
[1617382419826,92.1313,2055.5,2053.8,13.0707]
[1617382421027,92.1313,2055.5,2055.4,2.90695]
[1617382421226,90.7248,2055.5,2055.4,2.90695]
[1617382421825,30.0,2055.5,2055.4,2.90695]
[1617382422226,1.9429,2055.8,2055.4,2.90695]
[1617382422427,0.0062,2055.8,2055.4,2.90695]
[1617382423027,2.90695,2055.5,2055.4,2.90695]
[1617382426331,58.0172,2055.6,2055.4,2.90695]
[1617382427130,2.90695,2055.5,2055.4,2.90695]
[1617382428633,2.90695,2055.5,2055.4,2.85165]
[1617382429434,1.93705,2055.5,2055.4,2.85165]
[1617382433638,1.93705,2055.5,2055.4,4.46835]
[1617382436342,1.68955,2055.5,2055.4,4.46835]
[1617382437142,1.68955,2055.5,2055.4,3.91455]
[1617382438245,1.68955,2055.5,2055.4,2.29785]
[1617382440047,3.68385,2055.5,2053.8,13.0707]
[1617382440248,30.0,2055.4,2053.8,13.0707]
[1617382440448,63.0693,2054.7,2053.8,13.0707]
[1617382440647,64.5469,2054.7,2053.3,70.8664]
[1617382441247,64.5469,2054.7,2054.6,2.90695]
[1617382442349,63.0693,2054.7,2054.6,2.90695]
[1617382442949,93.0693,2054.7,2054.6,2.90695]
[1617382443150,30.0,2054.7,2054.6,2.90695]
[1617382443350,32.90695,2054.7,2054.6,2.67725]
[1617382444449,76.44035,2054.7,2054.6,2.67725]
[1617382448055,73.5334,2054.7,2054.6,2.67725]
[1617382448657,73.5334,2054.7,2053.8,75.30955]
[1617382448858,73.5334,2054.7,2054.0,1.5111]
[1617382449260,73.5334,2054.7,2054.6,2.90695]
[1617382450968,30.0,2055.5,2054.6,2.90695]
[1617382451163,108.0759,2055.5,2054.6,2.90695]
[1617382451564,108.0759,2055.5,2055.2,2.90695]
[1617382451772,108.0759,2055.5,2055.2,4.34535]
[1617382451965,78.0759,2055.5,2055.2,4.34535]
[1617382453565,2.90695,2055.4,2055.2,4.34535]
[1617382454264,2.90695,2055.4,2055.2,2.90695]
[1617382454463,1.93565,2055.4,2055.2,2.90695]
[1617382455562,31.93565,2055.4,2055.2,2.90695]
[1617382455763,33.46825,2055.4,2054.5,73.2596]
[1617382456663,33.46825,2055.4,2054.5,70.6886]
[1617382457664,31.5326,2055.4,2054.9,2.90695]
[1617382458468,1.5326,2055.4,2054.9,2.90695]
[1617382458669,30.0,2055.3,2054.9,2.90695]
[1617382458869,30.0,2055.1,2054.9,2.90695]
[1617382459069,30.9634,2055.1,2054.9,2.90695]
[1617382459270,30.9634,2055.1,2054.9,1.87085]
[1617382459572,32.90695,2055.0,2054.9,1.87085]
[1617382461372,31.93565,2055.0,2054.9,1.87085]
[1617382461874,31.93565,2055.0,2054.9,1.63025]
[1617382462075,31.93565,2055.0,2053.5,2.571]
[1617382462278,67.5688,2054.4,2053.5,2.571]
[1617382462474,70.5585,2054.4,2053.5,2.571]
[1617382462676,69.5782,2054.4,2053.5,2.571]
[1617382463478,69.5782,2054.4,2053.6,0.32074164]
[1617382463677,72.48515,2054.4,2054.3,2.90695]
[1617382464679,103.45135,2054.4,2054.3,2.90695]
[1617382465779,102.48515,2054.4,2054.3,2.90695]
[1617382466681,103.44325,2054.4,2054.3,2.90695]
[1617382467081,102.46515,2054.4,2054.3,2.90695]
[1617382468184,102.46515,2054.4,2053.5,2.571]
[1617382468385,33.94505,2054.4,2052.3,8.6516]
[1617382468586,73.8064,2053.4,2052.3,3.5536]
[1617382468787,75.4866,2053.4,2052.4,0.32078179]
[1617382469186,105.4866,2053.4,2052.4,0.32078179]
[1617382469587,108.39355,2053.4,2053.3,2.90695]
[1617382469788,70.5224,2052.5,2052.4,0.32078179]
[1617382469985,71.8476,2052.5,2052.4,0.32078179]
[1617382470186,71.8476,2052.5,2051.6,0.32091405]
[1617382470587,101.8476,2052.5,2051.5,0.32093099]
[1617382470786,101.8476,2052.5,2051.0,0.31877663]
[1617382471688,101.8476,2052.5,2052.4,2.90695]
[1617382473690,104.75455,2052.5,2052.1,2.90695]
[1617382473893,34.23215,2052.5,2052.1,2.90695]
[1617382475093,34.23215,2052.5,2050.4,16.07]
[1617382475293,72.1917,2050.9,2050.4,2.571]
[1617382475494,73.1514,2050.9,2050.5,0.31867063]
[1617382475693,73.1414,2050.9,2050.8,2.90695]
[1617382475893,1.931,2050.9,2050.8,2.90695]
[1617382476294,1.931,2050.9,2050.8,3.225652]
[1617382476493,75.03155,2051.4,2050.8,3.225652]
[1617382476494,2.90695,2051.4,2050.8,3.225652]
[1617382476894,56.7229,2050.9,2050.8,2.90695]
[1617382477293,56.7229,2050.9,2050.8,3.22589229]
[1617382478495,56.7229,2050.9,2050.8,2.90695]
[1617382479096,56.7229,2050.9,2050.8,3.22589881]
[1617382479697,56.7229,2050.9,2050.8,2.90695]
[1617382480600,2.90695,2051.5,2050.8,2.90695]
[1617382480799,2.90695,2051.5,2050.8,3.22589641]
[1617382480999,73.8155,2051.7,2050.8,2.90695]
[1617382481799,73.8155,2051.7,2051.5,2.90695]
[1617382482401,72.8442,2051.7,2051.5,2.90695]
[1617382485504,72.8442,2051.7,2051.1,0.02]
[1617382485703,75.75115,2051.7,2051.5,2.90695]
[1617382486303,72.8442,2051.7,2051.5,2.90695]
[1617382486506,0.9704,2051.7,2050.1,30.0]
[1617382486707,0.9704,2051.7,2050.1,103.4322]
[1617382486708,64.8123,2051.7,2050.1,103.4322]
[1617382486915,1.4309,2052.4,2049.4,30.0]
[1617382486916,64.8626,2050.7,2049.4,30.0]
[1617382487511,64.8626,2050.7,2050.0,3.0]
[1617382487712,2.90695,2051.0,2050.6,2.90695]
[1617382488314,1.8172,2051.6,2050.6,2.90695]
[1617382488712,76.319,2052.0,2050.6,2.90695]
[1617382489413,75.3477,2052.0,2050.6,2.90695]
[1617382489813,75.3477,2052.0,2051.7,2.90695]
[1617382491119,30.0,2052.8,2051.7,2.90695]
[1617382491319,30.0,2052.6,2051.7,2.90695]
[1617382491720,30.0,2052.6,2052.5,2.90695]
[1617382492921,30.0,2052.6,2052.5,4.86155]
[1617382493923,2.90695,2052.6,2052.5,4.86155]
[1617382494123,0.9749,2053.1,2052.5,4.86155]
[1617382494323,0.964,2054.0,2052.5,4.86155]
[1617382494524,77.7625,2053.5,2052.5,4.86155]
[1617382495730,77.7625,2053.5,2053.4,2.90695]
[1617382495929,77.7625,2053.5,2053.4,4.72385]
[1617382496528,76.7912,2053.5,2053.4,4.72385]
[1617382497328,2.90695,2053.7,2053.4,4.72385]
[1617382497528,30.0,2054.4,2053.4,4.72385]
[1617382497733,2.90695,2053.5,2053.4,4.72385]
[1617382498130,68.543,2053.6,2053.4,4.72385]
[1617382498545,68.543,2053.6,2053.4,2.90695]
[1617382498739,98.543,2053.6,2052.0,1.2346]
[1617382498931,31.3453,2053.6,2051.0,30.0]
[1617382499132,73.9726,2052.6,2051.0,30.0]
[1617382499334,75.2901,2052.6,2050.1,78.2576]
[1617382499531,75.2901,2052.6,2050.2,13.4396]
[1617382499731,105.2901,2052.6,2050.9,0.31880688]
[1617382499931,105.2901,2052.6,2050.2,13.4396]
[1617382499932,105.2901,2052.6,2050.5,30.0]
[1617382500331,75.2901,2052.6,2050.5,30.0]
[1617382500533,105.2901,2052.6,2050.5,30.0]
[1617382501035,105.2901,2052.6,2050.3,30.0]
[1617382501234,105.2901,2052.6,2050.4,0.31885504]
[1617382502033,105.2901,2052.6,2052.0,2.90695]
[1617382502234,105.2901,2052.6,2050.3,30.0]
[1617382502635,105.2901,2052.6,2050.4,0.31886295]
[1617382503440,104.3188,2052.6,2050.4,0.31886295]
[1617382503941,104.3188,2052.6,2051.8,2.90695]
[1617382504745,104.3188,2052.6,2050.3,30.0]
[1617382505951,104.3188,2052.6,2051.5,2.90695]
[1617382508046,2.90695,2051.6,2051.5,2.90695]
[1617382509748,74.95985,2051.6,2051.5,2.90695]
[1617382509949,33.87015,2051.6,2051.0,2.90695]
[1617382510550,71.0022,2051.0,2049.6,14.2579]
[1617382510751,103.7333,2051.0,2049.6,14.2579]
[1617382511553,102.7497,2051.0,2049.6,14.2579]
[1617382511953,72.7497,2051.0,2050.7,2.90695]
[1617382512153,2.90695,2051.2,2050.7,2.90695]
[1617382512354,86.3823,2051.6,2050.7,2.90695]
[1617382513955,56.3823,2051.6,2051.5,2.90695]
[1617382516658,2.90695,2051.8,2051.5,2.90695]
[1617382516859,54.8634,2052.8,2051.5,2.90695]
[1617382517459,79.343,2054.6,2051.5,2.90695]
[1617382517460,0.9667,2054.6,2051.5,2.90695]
[1617382517659,69.6558,2053.7,2051.6,59.4066]
[1617382518059,99.6558,2053.7,2053.3,2.90695]
[1617382518260,69.6558,2053.7,2053.3,4.31955]
[1617382519962,69.6558,2053.7,2053.3,2.90695]
[1617382520162,2.90695,2053.4,2051.7,30.0]
[1617382520764,69.5141,2052.9,2051.8,0.32284971]
[1617382521363,69.5141,2052.9,2051.8,30.32284971]
[1617382521565,69.5141,2052.9,2051.8,30.0]
[1617382522175,69.5141,2052.9,2052.8,2.90695]
[1617382522967,69.5141,2052.9,2051.8,30.0]
[1617382524069,69.5141,2052.9,2052.2,2.90695]
[1617382524668,30.0,2052.8,2052.2,2.90695]
[1617382526073,2.90695,2052.3,2052.2,2.90695]
[1617382527073,30.9613,2052.8,2052.2,2.90695]
[1617382527274,30.0,2052.8,2052.2,2.90695]
[1617382527675,69.5141,2052.9,2052.2,4.77745]
[1617382527874,99.5141,2052.9,2052.2,4.77745]
[1617382528075,2.90695,2052.3,2052.2,4.77745]
[1617382528475,69.5141,2052.9,2052.2,4.77745]
[1617382529077,99.5141,2052.9,2052.2,2.90695]
[1617382530078,2.90695,2052.3,2052.2,2.90695]
[1617382535586,1.93475,2052.3,2052.2,2.90695]
[1617382536386,63.1711,2051.4,2049.7,59.7449]
[1617382536587,63.1711,2051.4,2049.8,13.2799]
[1617382536987,63.1711,2051.4,2050.2,0.32472784]
[1617382537588,93.1711,2051.4,2050.1,0.32472597]
[1617382537787,93.1711,2051.4,2050.3,0.32474999]
[1617382537988,63.1711,2051.4,2050.3,0.32474999]
[1617382538190,63.1711,2051.4,2051.2,2.90695]
[1617382539591,64.1439,2051.4,2051.2,2.90695]
[1617382539792,63.1711,2051.4,2051.2,2.90695]
[1617382540592,63.1711,2051.4,2051.2,4.31655]
[1617382540793,30.9762,2052.7,2051.2,4.31655]
[1617382540992,77.4469,2052.4,2051.2,4.31655]
[1617382541393,107.4469,2052.4,2051.2,4.31655]
[1617382541593,107.4469,2052.4,2051.2,2.90695]
[1617382542194,107.4469,2052.4,2052.0,2.90695]
[1617382542594,106.4747,2052.4,2052.0,2.90695]
[1617382543300,108.4747,2052.4,2050.5,60.3522]
[1617382543501,32.0,2052.4,2050.0,3.0]
[1617382543701,77.7351,2051.3,2050.0,3.0]
[1617382543901,109.056,2051.3,2050.1,0.32412635]
[1617382544299,109.056,2051.3,2051.2,2.90695]
[1617382545599,79.056,2051.3,2051.2,2.90695]
[1617382545801,77.7351,2051.3,2051.2,2.90695]
[1617382546202,80.64205,2051.3,2050.7,2.90695]
[1617382548103,110.64205,2051.3,2050.7,2.90695]
[1617382548303,110.64205,2051.3,2051.1,2.90695]
[1617382548304,107.7351,2051.3,2051.1,2.90695]
[1617382549506,106.7629,2051.3,2051.1,2.90695]
[1617382550305,32.90695,2051.2,2051.1,2.90695]
[1617382550705,32.90695,2051.2,2050.0,3.0]
[1617382551105,55.0473,2050.3,2050.0,3.0]
[1617382552304,55.0473,2050.3,2050.2,2.90695]
[1617382554205,57.95425,2050.3,2050.2,2.90695]
[1617382554505,2.90695,2050.3,2050.2,2.90695]
[1617382554906,1.5316,2050.6,2050.2,2.90695]
[1617382555806,54.865,2050.7,2050.2,2.90695]
[1617382556408,54.865,2050.7,2050.6,2.90695]
[1617382556609,53.8928,2050.7,2050.6,2.90695]
[1617382557009,83.8928,2050.7,2050.6,2.90695]
[1617382558014,53.8928,2050.7,2050.6,2.90695]
[1617382558214,53.8928,2050.7,2050.6,4.81595]
[1617382559617,53.8928,2050.7,2050.6,2.90695]
[1617382561323,83.8928,2050.7,2050.6,2.90695]
[1617382562425,53.8928,2050.7,2050.6,2.90695]
[1617382563625,52.9206,2050.7,2050.6,2.90695]
[1617382565733,52.9206,2050.7,2050.6,4.87685]
[1617382568634,62.9206,2050.7,2050.6,4.87685]
[1617382568834,10.0,2050.7,2050.6,4.87685]
[1617382570035,77.2402,2050.7,2050.6,4.87685]
[1617382570636,76.268,2050.7,2050.6,4.87685]
[1617382570837,9.0278,2050.7,2050.6,4.87685]
[1617382571253,6.8462,2050.7,2050.6,4.87685]
[1617382571458,75.9861,2051.5,2050.6,4.87685]
[1617382571649,0.01395111,2052.4,2050.6,4.87685]
[1617382571845,0.01395111,2052.4,2050.6,112.43775]
[1617382572039,80.61543537,2052.9,2050.6,112.43775]
[1617382572040,0.9762,2052.7,2050.6,112.43775]
[1617382572248,0.9762,2052.7,2050.7,0.3233858]
[1617382574543,0.9762,2052.7,2052.0,2.90695]
[1617382574743,0.9762,2052.7,2052.0,4.31805]
[1617382576656,12.09305,2052.3,2052.0,1.4111]
[1617382577546,11.12085,2052.3,2052.0,1.4111]
[1617382578747,11.12085,2052.3,2052.2,2.90695]
[1617382580151,11.12085,2052.3,2052.2,3.88345]
[1617382580753,11.12085,2052.3,2052.2,2.90695]
[1617382583256,2.90695,2053.1,2052.2,2.90695]
[1617382584657,1.93475,2053.1,2053.0,2.90695]
[1617382586156,1.93475,2053.1,2053.0,4.27715]
[1617382588457,65.2766,2053.7,2053.0,4.27715]
[1617382588657,65.2766,2053.7,2053.6,2.90695]
[1617382589660,0.9881,2054.0,2053.6,2.90695]
[1617382589862,80.5991,2054.5,2053.6,2.90695]
[1617382590061,80.6006,2054.5,2053.6,2.90695]
[1617382590762,2.90695,2053.7,2053.6,2.90695]
[1617382591562,1.93475,2053.7,2053.6,2.90695]
[1617382592363,80.6006,2054.5,2053.6,2.90695]
[1617382592563,79.6198,2054.5,2053.6,4.24435]
[1617382592765,79.6198,2054.5,2054.3,4.13405]
[1617382592968,0.02786563,2054.8,2054.3,4.13405]
[1617382592969,0.0139327,2054.8,2054.3,4.13405]
[1617382593370,63.8006,2055.0,2054.3,4.13405]
[1617382594669,63.8006,2055.0,2054.8,2.90695]
[1617382596773,0.9634,2055.1,2054.8,2.90695]
[1617382596774,2.90695,2054.9,2054.8,2.90695]
[1617382597174,30.0,2055.7,2054.8,2.90695]
[1617382597373,79.0749,2055.6,2054.8,2.90695]
[1617382598675,2.90695,2055.1,2054.8,2.90695]
[1617382600977,78.1027,2055.6,2054.8,2.90695]
[1617382602279,30.0,2055.5,2054.8,2.90695]
[1617382602479,30.0,2055.5,2053.6,1.3374]
[1617382602480,69.2849,2054.8,2053.4,0.9714]
[1617382602686,70.5023,2054.8,2054.3,2.90695]
[1617382602885,1.2174,2054.8,2052.8,30.987]
[1617382603084,65.6363,2054.0,2051.7,68.311]
[1617382603285,66.6204,2054.0,2051.9,30.0]
[1617382603487,65.6363,2054.0,2051.9,30.0]
[1617382604689,68.54325,2054.0,2053.9,2.90695]
[1617382604888,4.20295,2054.0,2053.9,2.90695]
[1617382605091,61.76785,2054.0,2053.9,2.90695]
[1617382605488,61.76785,2054.0,2052.3,60.8019]
[1617382605688,91.76785,2054.0,2052.3,60.8019]
[1617382606789,61.76785,2054.0,2053.9,2.90695]
[1617382611198,61.76785,2054.0,2052.4,1.3003]
[1617382611400,61.76785,2054.0,2052.3,60.8019]
[1617382612800,61.76785,2054.0,2053.9,2.90695]
[1617382616602,91.76785,2054.0,2053.9,2.90695]
[1617382617904,61.76785,2054.0,2053.9,2.90695]
[1617382621005,61.76785,2054.0,2053.1,1.583]
[1617382621205,61.76785,2054.0,2052.6,1.6095]
[1617382621405,61.76785,2054.0,2052.3,60.8019]
[1617382622808,61.76785,2054.0,2053.6,2.90695]
[1617382624914,2.90695,2053.7,2053.6,2.90695]
[1617382631518,88.5366,2054.0,2053.6,2.90695]
[1617382631719,57.5649,2054.0,2053.6,2.90695]
[1617382633021,57.5649,2054.0,2053.9,2.90695]
[1617382633222,57.5649,2054.0,2053.9,4.89225]
[1617382634220,30.0,2055.4,2053.9,4.89225]
[1617382634421,75.0937,2055.2,2053.9,4.89225]
[1617382634621,74.1223,2055.2,2053.9,4.89225]
[1617382634924,74.1223,2055.2,2055.0,2.90695]
[1617382636522,74.1223,2055.2,2054.8,1.8862]
[1617382636721,74.1223,2055.2,2053.9,1.9853]
[1617382636922,74.1223,2055.2,2055.0,2.90695]
[1617382637623,0.9628,2055.7,2055.0,2.90695]
[1617382638023,89.4061,2056.1,2055.0,2.90695]
[1617382638223,59.4061,2056.1,2055.0,2.90695]
[1617382639024,59.4061,2056.1,2055.6,2.90695]
[1617382639224,0.9708,2056.3,2055.6,4.50585]
[1617382639424,80.9072,2056.3,2055.6,4.50585]
[1617382640925,2.90695,2055.7,2055.6,4.50585]
[1617382641428,2.90695,2055.7,2055.6,2.90695]
[1617382641629,1.93555,2055.7,2054.6,1.4668]
[1617382641828,79.21255,2055.7,2054.6,1.4668]
[1617382642232,79.21255,2055.7,2054.1,64.6451]
[1617382642631,80.17725,2055.7,2054.2,30.0]
[1617382642830,77.277,2055.7,2054.2,30.0]
[1617382643032,77.277,2055.7,2055.6,2.90695]
[1617382643232,30.0,2056.3,2055.6,4.81185]
[1617382644335,64.3931,2056.5,2055.6,4.81185]
[1617382644936,64.3931,2056.5,2056.4,2.90695]
[1617382645138,64.3931,2056.5,2056.4,4.23525]
[1617382646839,0.9719,2057.0,2056.4,4.23525]
[1617382647140,2.90695,2056.5,2056.4,4.23525]
[1617382647741,89.4301,2057.2,2056.4,4.23525]
[1617382648740,89.4251,2057.2,2056.4,4.23525]
[1617382648941,89.4251,2057.2,2057.1,2.90695]
[1617382649744,89.4251,2057.2,2056.4,1.3283]
[1617382650246,89.4251,2057.2,2055.9,78.5719]
[1617382650844,60.3965,2057.2,2055.9,77.5934]
[1617382651044,59.4301,2057.2,2057.1,2.90695]
[1617382655649,58.4587,2057.2,2057.1,2.90695]
[1617382661258,2.90695,2057.4,2057.1,2.90695]
[1617382662660,1.93555,2057.4,2057.1,2.90695]
[1617382663560,62.51565,2057.4,2057.1,2.90695]
[1617382663760,92.51565,2057.4,2056.0,76.561]
[1617382663961,93.93095,2057.4,2056.0,76.561]
[1617382665162,91.9954,2057.4,2057.1,2.90695]
[1617382665362,90.5801,2057.4,2057.1,2.90695]
[1617382667169,2.90695,2057.2,2057.1,2.90695]
[1617382667869,2.90695,2057.2,2056.0,76.561]
[1617382668070,4.15745,2057.2,2056.0,76.561]
[1617382669169,1.2505,2057.2,2056.7,2.90695]
[1617382669672,0.2791,2057.2,2056.7,2.90695]
[1617382671275,2.90695,2056.8,2056.7,2.90695]
[1617382673176,2.90695,2057.1,2056.7,2.90695]
[1617382675284,2.90695,2057.1,2057.0,2.90695]
[1617382675881,32.90695,2057.1,2057.0,2.90695]
[1617382676780,31.93555,2057.1,2057.0,2.90695]
[1617382678882,1.93555,2057.1,2057.0,2.90695]
[1617382683592,76.525,2057.0,2055.0,70.018]
[1617382683793,29.0286,2056.9,2054.0,30.9779]
[1617382683989,76.5329,2055.9,2054.0,30.0]
[1617382684188,78.0475,2055.9,2054.0,30.0]
[1617382684987,78.0475,2055.9,2054.0,30.9597]
[1617382685389,78.0475,2055.9,2055.8,2.90695]
[1617382685590,1.5146,2055.9,2055.8,2.90695]
[1617382688792,29.0286,2056.0,2055.8,2.90695]
[1617382690699,28.0572,2056.0,2055.8,2.90695]
[1617382690899,2.90695,2056.1,2055.8,2.90695]
[1617382694608,32.90695,2056.1,2055.8,2.90695]
[1617382696611,32.90695,2056.1,2054.2,56.1758]
[1617382696812,81.4962,2055.8,2054.2,56.1758]
[1617382697015,30.0,2055.7,2054.2,56.1758]
[1617382697413,2.0,2055.6,2054.2,56.1758]
[1617382697613,30.0,2055.5,2055.0,2.90695]
[1617382697814,29.0286,2055.5,2055.0,2.90695]
[1617382699615,2.90695,2055.1,2055.0,2.90695]
[1617382699814,4.34245,2055.1,2055.0,2.90695]
[1617382701816,72.1207,2055.2,2055.0,2.90695]
[1617382702916,72.1207,2055.2,2053.9,77.1504]
[1617382703117,73.8146,2055.2,2053.9,77.1504]
[1617382703517,73.8146,2055.2,2055.1,2.90695]
[1617382705519,72.1207,2055.2,2055.1,2.90695]
[1617382707726,72.1207,2055.2,2054.6,0.9837]
[1617382707928,2.5317,2055.2,2053.4,0.9619]
[1617382708128,72.7042,2054.3,2053.4,0.9619]
[1617382708327,72.7042,2054.3,2053.1,30.0]
[1617382708328,74.1006,2054.3,2053.1,30.0]
[1617382709734,74.1006,2054.3,2053.9,2.90695]
[1617382711736,2.90695,2054.0,2053.9,2.90695]
[1617382714943,72.7042,2054.3,2053.9,2.90695]
[1617382715140,29.0286,2055.1,2053.9,2.90695]
[1617382715341,71.2034,2054.9,2053.9,2.90695]
[1617382715842,71.2034,2054.9,2054.4,2.90695]
[1617382717843,71.2034,2054.9,2054.7,2.90695]
[1617382718444,71.2034,2054.9,2053.5,1.6385]
[1617382718644,72.9332,2054.9,2053.3,55.0675]
[1617382718846,71.9618,2054.9,2053.3,55.0675]
[1617382719444,100.9904,2054.9,2053.3,55.0675]
[1617382719845,100.9904,2054.9,2054.4,2.90695]
[1617382721752,2.90695,2054.5,2053.9,2.90695]
[1617382721951,3.88865,2054.5,2053.9,2.90695]
[1617382723453,2.90695,2054.5,2053.9,2.90695]
[1617382723854,2.90695,2054.5,2054.4,2.90695]
[1617382725756,1.93555,2054.5,2054.4,2.90695]
[1617382726358,0.961,2055.2,2054.4,2.90695]
[1617382726558,82.0742,2055.8,2054.4,76.55915]
[1617382727760,81.1028,2055.8,2054.4,76.55915]
[1617382727963,81.1028,2055.8,2055.2,2.90695]
[1617382728962,111.1028,2055.8,2055.2,2.90695]
[1617382729961,2.90695,2055.3,2055.2,2.90695]
[1617382730663,2.90695,2055.3,2054.6,1.5431]
[1617382730864,2.90695,2055.3,2054.4,71.7334]
[1617382731466,15.0,2054.8,2054.4,71.7334]
[1617382731866,15.0,2054.8,2054.7,2.90695]
[1617382732066,2.90695,2055.3,2054.7,2.90695]
[1617382733868,14.0,2055.7,2055.2,2.90695]
[1617382734871,13.0286,2055.7,2055.2,4.82275]
[1617382735871,13.0286,2055.7,2055.6,2.90695]
[1617382741776,12.0572,2055.7,2055.6,2.90695]
[1617382748485,12.0572,2055.7,2055.6,4.85895]
[1617382748885,11.0858,2055.7,2055.6,4.85895]
[1617382750888,3.7515,2055.7,2055.6,4.85895]
[1617382751289,3.7515,2055.7,2055.6,34.85895]
[1617382751488,0.01396978,2057.5,2055.7,74.9286]
[1617382751689,0.01396772,2057.6,2055.7,74.9286]
[1617382752089,31.00016772,2057.6,2057.2,2.90695]
[1617382752289,32.79626772,2057.6,2055.7,74.9286]
[1617382752991,0.01396717,2057.5,2055.7,74.9286]
[1617382754091,0.01396717,2057.5,2057.1,2.90695]
[1617382754793,31.00016866,2057.6,2057.1,2.90695]
[1617382755894,30.02876866,2057.6,2057.1,2.90695]
[1617382756095,2.90695,2057.2,2057.1,2.90695]
[1617382759699,31.93555,2057.2,2057.1,2.90695]
[1617382761701,31.93555,2057.2,2055.7,74.9286]
[1617382762102,29.0286,2057.2,2056.7,2.90695]
[1617382762903,29.0434,2057.6,2056.7,2.90695]
[1617382763605,29.0434,2057.6,2056.8,55.7698]
[1617382764006,2.90695,2056.9,2056.8,55.7698]
[1617382764613,30.96415,2056.9,2056.7,2.90695]
[1617382764810,33.53035,2056.9,2055.1,1.6553]
[1617382765012,59.8189,2056.5,2055.1,66.261]
[1617382765210,28.0572,2056.4,2055.1,66.261]
[1617382765410,29.386,2056.4,2055.1,66.261]
[1617382766011,29.386,2056.4,2055.6,2.90695]
[1617382766413,30.3447,2056.4,2055.6,2.90695]
[1617382767013,29.386,2056.4,2055.9,71.6899]
[1617382767216,28.0572,2056.4,2055.9,71.6899]
[1617382768014,28.0572,2056.4,2056.2,2.90695]
[1617382768214,2.90695,2056.5,2056.2,2.90695]
[1617382769415,30.96415,2056.5,2056.2,2.90695]
[1617382769815,29.99275,2056.5,2056.2,2.90695]
[1617382772417,1.93555,2056.5,2056.2,2.90695]
[1617382774718,3.88215,2056.5,2056.2,2.90695]
[1617382774917,31.93935,2056.5,2056.2,2.90695]
[1617382776919,30.96795,2056.5,2056.2,2.90695]
[1617382781522,2.91075,2056.5,2056.2,2.90695]
[1617382782723,0.96415,2056.5,2056.2,2.90695]
[1617382783925,0.96415,2056.5,2056.2,1.93255]
[1617382787833,30.0,2057.0,2056.2,1.93255]
[1617382788235,30.0,2057.0,2056.9,2.90695]
[1617382788434,30.0,2057.2,2056.9,2.90695]
[1617382790136,2.90695,2057.0,2056.9,2.90695]
[1617382790936,1.93615,2057.0,2056.9,2.90695]
[1617382794540,30.0,2057.5,2056.9,2.90695]
[1617382796443,30.0,2057.5,2057.2,2.90695]
[1617382797944,29.0292,2057.5,2057.2,2.90695]
[1617382798345,2.90695,2057.3,2057.2,2.90695]
[1617382798545,0.01393936,2057.7,2057.6,68.0695]
[1617382798744,0.01393936,2057.7,2057.6,69.6455]
[1617382798945,0.01395166,2057.8,2057.6,69.6455]
[1617382799148,0.0139602,2058.1,2057.6,69.6455]
[1617382799547,0.9762,2058.1,2057.6,69.6455]
[1617382799857,0.01396563,2058.3,2057.6,69.6455]
[1617382800063,0.01396563,2058.3,2057.6,1.576]
[1617382800272,29.0292,2058.4,2058.1,62.273]
[1617382800456,2.90695,2058.2,2058.1,63.6352]
[1617382800647,31.93615,2058.2,2058.1,63.6352]
[1617382801648,2.90695,2058.2,2058.1,63.6352]
[1617382802449,2.90695,2058.2,2058.1,66.54215]
[1617382802650,0.01397598,2058.9,2058.1,66.54215]
[1617382802849,0.01397738,2059.0,2058.1,66.54215]
[1617382803849,0.01399665,2058.8,2058.1,66.54215]
[1617382804448,0.01399665,2058.8,2058.7,2.90695]
[1617382804848,0.01400109,2058.9,2058.7,2.90695]
[1617382805048,102.19782947,2059.3,2058.7,2.90695]
[1617382805450,30.28002183,2059.3,2058.7,2.90695]
[1617382805651,30.0,2059.3,2058.8,56.3003]
[1617382805850,0.28006513,2059.4,2058.8,56.3003]
[1617382806451,2.90695,2058.9,2058.8,56.3003]
[1617382807953,30.0,2059.7,2058.8,56.3003]